Cogmind - Beta 10.1 @@@ ROGUE MODE // 2020.09.24 @ 15:07:39 Player: AM Result: Destroyed by G-47 Trooper with Particle Gun Performance ------------- Evolutions (2) 1000 Regions Visited (5) 1000 Robots Destroyed (22) 110 Value Destroyed (486) 486 Prototype IDs (0) 0 Alien Tech Used (0) 0 Bonus (335) 335 TOTAL SCORE: 2931 Bonus ------- Follower Combat Kills 35 Aligned with FarCom 300 Cogmind --------- Core Integrity 0/550 Matter 290/300 Energy 250/250 System Corruption 0% Temperature Cool (9) Movement Walking (180) Ox2 Location -8/Materials Parts ------- > --- POWER (2) -------- Ion Engine > --- PROPULSION (4) --- Aluminum Leg > --- UTILITY (3) ------ Large Storage Unit > --- WEAPON (2) ------- Power Maul > --- INVENTORY (10) --- Lightning Gun Lightning Gun Grenade Launcher Peak State ------------ > --- POWER ------------ Ion Engine Ion Engine > --- PROPULSION ------- Aluminum Leg Aluminum Leg Aluminum Leg Aluminum Leg > --- UTILITY ---------- Large Storage Unit Hardened Heavy Armor Plating > --- WEAPON ----------- Lightning Gun Lightning Gun > --- INVENTORY -------- Aluminum Leg Large Storage Unit Lightning Gun Lightning Gun Grenade Launcher [Rating: 24] Favorites ----------- Power Ion Engine Engine Ion Engine Propulsion Aluminum Leg Leg Aluminum Leg Utility Large Storage Unit Device Improved Heat Sink Storage Large Storage Unit Protection Improved Light Armor Plating Weapon Medium Laser Energy Gun Medium Laser Launcher Grenade Launcher Impact Weapon Power Maul Build | -11 -10 -10 -10 -9 -8 ------- Run | Scr Mat Min Exi Min Mat Slots Evolved 4 | . . . . . 4 Power 1 | . . . . . 1 Propulsion 2 | . . . . . 2 Utility 1 | . . . . . 1 Weapon . | . . . . . . Parts Attached 26 | 5 5 6 . . 10 Power 3 | 1 . 1 . . 1 Engine 3 | 1 . 1 . . 1 Core . | . . . . . . Reactor . | . . . . . . Propulsion 6 | 2 . 1 . . 3 Treads . | . . . . . . Leg 6 | 2 . 1 . . 3 Wheel . | . . . . . . Hover . | . . . . . . Flight . | . . . . . . Utility 7 | . 3 1 . . 3 Device 1 | . 1 . . . . Storage 4 | . 2 . . . 2 Processor . | . . . . . . Hackware . | . . . . . . Protection 2 | . . 1 . . 1 Artifact . | . . . . . . Weapon 10 | 2 2 3 . . 3 Energy Gun 7 | 2 1 2 . . 2 Energy Cannon . | . . . . . . Ballistic Gun . | . . . . . . Ballistic Cannon . | . . . . . . Launcher 2 | . 1 1 . . . Special Weapon . | . . . . . . Impact Weapon 1 | . . . . . 1 Slashing Weapon . | . . . . . . Piercing Weapon . | . . . . . . Special Melee Weapon . | . . . . . . Unidentified Prototypes . | . . . . . . Parts Lost 8 | . . 3 . . 5 Power 2 | . . 1 . . 1 Propulsion 3 | . . . . . 3 Utility 2 | . . 1 . . 1 Weapon 1 | . . 1 . . . Highest Loss Streak 5 | . . 3 . . 5 Average Slot Usage (%) 94 | . 96 86 100 100 86 Engine 14 | . 14 13 14 14 17 Leg 29 | . 28 28 28 28 34 Storage 13 | . 23 14 14 14 9 Protection 9 | . . 2 14 14 8 Energy Gun 24 | . 24 23 28 28 17 Naked Turns . | . . . . . . Heaviest Build 54 | 9 42 28 28 28 54 Greatest Support 40 | 20 20 20 20 20 40 Greatest Overweight (x) 2 | . 2 1 1 1 2 Average Overweight (x) . | . 1 . 1 1 1 Largest Inventory Capacity 16 | 4 16 10 10 10 16 Average Capacity 10 | 4 13 10 10 10 10 Most Carried 7 | 4 7 7 6 6 7 Average Carried 5 | 2 3 5 6 6 5 Final Capacity 10 | 4 10 10 10 10 10 Final Carried 6 | 3 6 6 6 6 3 Class Distribution -------------------- 79% | Mutant 20% | Scavenger-Mutant Dominant Class ---------------- Mutant | -10/Materials Mutant | -10/Mines Mutant | -10/Exiles Mutant | -9/Mines Scavenger-Mutant | -8/Materials Resources | -11 -10 -10 -10 -9 -8 ----------- Run | Scr Mat Min Exi Min Mat Matter Collected 525 | 250 35 160 . 10 70 Remotely . | . . . . . . Salvage Created 636 | 24 129 239 . 21 223 Parts 31 | 3 10 11 . 2 5 Haulers Intercepted 1 | . . . . . 1 Recyclers Shooed 2 | . 1 1 . . . Parts Field Recycled . | . . . . . . Retrieved Matter . | . . . . . . Parts Self-Destructed . | . . . . . . Prevented . | . . . . . . Kills | -11 -10 -10 -10 -9 -8 ------- Run | Scr Mat Min Exi Min Mat Combat Hostiles Destroyed 17 | . 4 10 . . 3 Guns 5 | . . 2 . . 3 AOE 12 | . 4 8 . . . Classes Destroyed 9 | 1 2 3 . 1 2 Builder 1 | . . . . 1 . Tunneler 1 | 1 . . . . . Hauler 1 | . . . . . 1 Recycler 1 | . . 1 . . . Watcher 1 | . 1 . . . . Swarmer 3 | . . 3 . . . Grunt 8 | . 4 2 . . 2 Brawler 1 | . . . . . 1 Assembled 5 | . . 5 . . . Best Kill Streak 8 | 1 5 8 . 1 4 Combat Bots Only 8 | . 4 8 . . 3 Max Kills in Single Turn 5 | 1 2 5 . 1 2 Gunslinging . | . . . . . . Exploded 5 | . 1 5 . . . Melee . | . . . . . . Uniques/NPCs Destroyed . | . . . . . . Combat | -11 -10 -10 -10 -9 -8 -------- Run | Scr Mat Min Exi Min Mat Damage Taken 1852 | . 129 422 . . 1301 Core 730 | . 12 154 . . 564 Absorbed by Shields . | . . . . . . Core Remaining (%) 66 | 100 . . . 33 . Volleys Fired 46 | 1 7 20 . 1 17 Largest 2 | 2 1 2 . 2 2 Hottest 110 | 100 50 90 . 90 110 Shots Fired 72 | 2 7 31 . 2 30 Gun 61 | 2 2 25 . 2 30 Cannon . | . . . . . . Launcher 11 | . 5 6 . . . Special . | . . . . . . Kinetic . | . . . . . . Thermal 22 | 2 2 17 . 1 . Explosive 11 | . 5 6 . . . Electromagnetic 39 | . . 8 . 1 30 Robot Hit Streak 12 | . 4 12 . . 6 Robot Miss Streak 5 | 2 . 2 . . 5 Penetration Max . | . . . . . . Secondary Targets 1 | . . . . . 1 Max Gunslinging Chain 1 | . . . . . 1 Shots Hit Robots 40 | . 4 19 . . 17 Core Hits 43 | 1 7 25 . 1 9 Critical Hits . | . . . . . . Critical Kills . | . . . . . . Critical Parts Destroyed . | . . . . . . Melee Attacks 4 | . . . . . 4 Impact 4 | . . . . . 4 Slashing . | . . . . . . Piercing . | . . . . . . Sneak Attacks . | . . . . . . Combat Hostiles . | . . . . . . Follow-up Attacks . | . . . . . . Damage Inflicted 1533 | 12 345 698 . 12 466 Guns 654 | 12 25 247 . 12 358 Cannons . | . . . . . . Explosions 812 | . 320 451 . . 41 Melee 67 | . . . . . 67 Ramming . | . . . . . . Kinetic . | . . . . . . Thermal 252 | 12 25 162 . 12 41 Explosive 771 | . 320 451 . . . Electromagnetic 443 | . . 85 . . 358 Impact 67 | . . . . . 67 Slashing . | . . . . . . Piercing . | . . . . . . Highest Corruption . | . . . . . . Average Corruption . | . . . . . . Corruption Purged . | . . . . . . Overload Shots . | . . . . . . Overflow Damage 41 | . . 25 . . 16 Projectiles . | . . . . . . Explosions 41 | . . 25 . . 16 Melee . | . . . . . . Knockbacks . | . . . . . . Impact . | . . . . . . Kinetic . | . . . . . . Secondary . | . . . . . . Self-Inflicted Damage 68 | . . 68 . . . Shots 4 | . . 4 . . . Rammed . | . . . . . . Targets Rammed 1 | . . . . 1 . Kicked 1 | . . . . 1 . Crushed . | . . . . . . Highest Temperature 882 | 39 20 147 . 36 882 Average Temperature 262 | 24 5 46 . 19 388 Received Heat Transfer 392 | . 69 53 . . 270 Effects 48 | . . . . . 48 Shutdowns 14 | . . . . . 14 Energy Bleed 4 | . . . . . 4 Interference 3 | . . . . . 3 Matter Decay 3 | . . . . . 3 Short Circuit 2 | . . . . . 2 Damage (minor) 5 | . . . . . 5 Damage (major) 12 | . . . . . 12 Damage (core) 5 | . . . . . 5 Siege Activations . | . . . . . . Robots Corrupted . | . . . . . . Combat Hostiles . | . . . . . . Parts Fried 2 | . . . . . 2 Impact Corruptions . | . . . . . . Robots Melted . | . . . . . . Combat Hostiles . | . . . . . . Parts Melted . | . . . . . . Heat Transferred 679 | 37 74 481 . 37 50 Parts Sabotaged . | . . . . . . Parts Stolen . | . . . . . . Parts Stripped . | . . . . . . Power Chain Reactions 1 | . . . . . 1 Missiles Intercepted . | . . . . . . Alert | -11 -10 -10 -10 -9 -8 ------- Run | Scr Mat Min Exi Min Mat Peak Influence 214 | 5 115 214 . 5 141 Initial 44 | . 3 44 . . 1 Average 71 | . 50 166 . 3 23 Maximum Alert Level 1 | . . 1 . . . Low Security (%) 81 | 100 100 44 . 100 100 Level 1 18 | . . 55 . . . Level 2 . | . . . . . . Level 3 . | . . . . . . Level 4 . | . . . . . . Level 5 . | . . . . . . High Security . | . . . . . . Max Security . | . . . . . . Squads Dispatched 2 | . 1 . . . 1 Investigation . | . . . . . . Extermination . | . . . . . . Reinforcement 2 | . 1 . . . 1 Assault . | . . . . . . Garrison . | . . . . . . Intercept . | . . . . . . Construction Impeded . | . . . . . . Haulers Reinforced . | . . . . . . Stealth | -11 -10 -10 -10 -9 -8 --------- Run | Scr Mat Min Exi Min Mat Distress Signals 4 | . 1 . . . 3 Communications Jammed . | . . . . . . Distress Signals . | . . . . . . Times Spotted 38 | . 6 14 . . 18 Peak Tracking Total 13 | . 5 13 . . 9 Tactical Retreats 5 | . . . . . 5 Traps | -11 -10 -10 -10 -9 -8 ------- Run | Scr Mat Min Exi Min Mat Traps Triggered . | . . . . . . Indirectly . | . . . . . . Trap Hack Attempts . | . . . . . . Triggered . | . . . . . . Disarmed . | . . . . . . Reprogrammed . | . . . . . . Reused . | . . . . . . Traps Extracted . | . . . . . . Installed . | . . . . . . Triggered . | . . . . . . Machines | -11 -10 -10 -10 -9 -8 ---------- Run | Scr Mat Min Exi Min Mat Machines Disabled 6 | . . 5 . . 1 Max in Single Turn 2 | . . 2 . . 1 Machines Sabotaged . | . . . . . . Garrisons Compromised . | . . . . . . Overloaded Fab Kills . | . . . . . . Fab Network Shutdowns . | . . . . . . Hacking | -11 -10 -10 -10 -9 -8 --------- Run | Scr Mat Min Exi Min Mat Machines Accessed 3 | . . . 3 . . Terminals . | . . . . . . Fabricators . | . . . . . . Repair Stations . | . . . . . . Recycling Units . | . . . . . . Scanalyzers . | . . . . . . Garrison Access . | . . . . . . Total Hacks 26 | . . . 26 . . Successful 26 | . . . 26 . . Failed . | . . . . . . Catastrophic . | . . . . . . Database Lockouts . | . . . . . . Manual 2 | . . . 2 . . Terminals . | . . . . . . Fabricators . | . . . . . . Repair Stations . | . . . . . . Recycling Units . | . . . . . . Scanalyzers . | . . . . . . Garrison Access . | . . . . . . Terminal Hacks 26 | . . . 26 . . Record 26 | . . . 26 . . Fabricator Hacks . | . . . . . . Repair Station Hacks . | . . . . . . Recycling Unit Hacks . | . . . . . . Scanalyzer . | . . . . . . Garrison Access Hacks . | . . . . . . Unauthorized Hacks . | . . . . . . Terminals . | . . . . . . Fabricators . | . . . . . . Repair Stations . | . . . . . . Recycling Units . | . . . . . . Scanalyzers . | . . . . . . Garrison Access . | . . . . . . Data Cores Recovered . | . . . . . . Used . | . . . . . . Hacking Detections . | . . . . . . Full Trace Events . | . . . . . . Feedback Events . | . . . . . . Feedback Blocked . | . . . . . . Robot Schematics Acquired . | . . . . . . Robots Built . | . . . . . . Matter . | . . . . . . Time . | . . . . . . Total Robot Build Rating . | . . . . . . Part Schematics Acquired . | . . . . . . Parts Built . | . . . . . . Matter . | . . . . . . Time . | . . . . . . Total Part Build Rating . | . . . . . . Parts Repaired . | . . . . . . Time . | . . . . . . Parts Recycled . | . . . . . . Recycled Matter . | . . . . . . Retrieved Matter . | . . . . . . Retrieved Components . | . . . . . . Parts Scanalyzed . | . . . . . . Part Schematics Acquired . | . . . . . . Parts Damaged . | . . . . . . Bothacking | -11 -10 -10 -10 -9 -8 ------------ Run | Scr Mat Min Exi Min Mat Used RIF Installer . | . . . . . . Robots Hacked . | . . . . . . Non-combat . | . . . . . . Combat . | . . . . . . Robot Hacks Applied . | . . . . . . Relay Couplers Released . | . . . . . . Robots Rewired . | . . . . . . Allies Hacked . | . . . . . . Hacks Repelled . | . . . . . . Allies | -11 -10 -10 -10 -9 -8 -------- Run | Scr Mat Min Exi Min Mat Total Allies 2 | . . . . 2 . Largest Group 2 | . . . . 2 2 Highest-Rated Group 39 | . . . . 39 39 Highest-Rated Ally 31 | . . . . 31 31 Total Orders . | . . . . . . Ally Attacks 16 | . . . . . 16 Total Damage 229 | . . . . . 229 Kills 2 | . . . . . 2 Allies Corrupted . | . . . . . . Allies Melted . | . . . . . . Intel | -11 -10 -10 -10 -9 -8 ------- Run | Scr Mat Min Exi Min Mat Robot Analysis Total . | . . . . . . Derelict Logs Recovered . | . . . . . . Drone Launches . | . . . . . . Drone Recoveries . | . . . . . . Exploration | -11 -10 -10 -10 -9 -8 ------------- Run | Scr Mat Min Exi Min Mat Turns Passed 1953 | 56 120 321 983 39 434 Spaces Moved 1093 | 39 57 155 652 24 166 Core 9 | 9 . . . . . Treads . | . . . . . . Legs 1084 | 30 57 155 652 24 166 Wheels . | . . . . . . Hover . | . . . . . . Flight . | . . . . . . Fastest Speed 50 | 50 120 120 150 150 120 Average Speed 149 | 103 165 149 150 150 151 Slowest Speed 180 | 120 180 150 150 150 180 Overloaded Moves . | . . . . . . Propulsion Burnouts . | . . . . . . Robots Hopped . | . . . . . . Cave-ins Triggered 1 | . . 1 . . . Exploration Rate (%) 31 | 3 15 50 90 8 21 Regions Visited 5 Branch Regions 3 Pre-discovered Areas 1 | . . 1 . . . Known Exits Taken . | . . . . . . Unknown Exits Taken 5 | 1 1 1 1 1 . Scrap Searched 1 | . . 1 . . . Spaces Dug . | . . . . . . Terrain Destroyed 62 | . 29 30 . . 3 Melee . | . . . . . . Projectile . | . . . . . . AOE 62 | . 29 30 . . 3 Terrain Rammed . | . . . . . . Walls Destroyed . | . . . . . . Machines Disabled . | . . . . . . Actions | -11 -10 -10 -10 -9 -8 --------- Run | Scr Mat Min Exi Min Mat Total 1343 | 52 78 214 657 25 317 Wait 112 | . . . 6 . 106 Move 1088 | 38 56 154 651 23 166 Hop . | . . . . . . Pick Up 24 | 8 6 4 . . 6 Fast Attach . | . . . . . . Attach 25 | 5 5 6 . . 9 Detach 6 | . 3 2 . . 1 Swap 1 | . . . . . 1 Drop 9 | . 1 1 . . 7 Fire 46 | 1 7 20 . 1 17 Melee 4 | . . . . . 4 Ram . | . . . . . . Kick 1 | . . . . 1 . Crush . | . . . . . . Escape Stasis . | . . . . . . Rewire 27 | . . 27 . . . Trap . | . . . . . . Miscellaneous . | . . . . . . Route ------- -11/Scrapyard -10/Materials -10/Mines -10/Exiles (discovered 2 exits: [*Min x2]) -9/Mines -8/Materials History --------- Turn | Location | Event 7 | -11/Scrapyard | Discovered new exit (range 15) 57 | -11/Scrapyard | Entered Materials 145 | -10/Materials | Discovered new exit (range 10) 177 | -10/Materials | Entered Mines 178 | -10/Mines | Learned location of Storage (-9) 204 | -10/Mines | Assembled infested the area 226 | -10/Mines | Crushed by falling debris 226 | -10/Mines | Core integrity fell below 50% 252 | -10/Mines | Destroyed 8 combat bots 258 | -10/Mines | Lost 3 parts (1p1u1w) 305 | -10/Mines | Build established: Mutant 492 | -10/Mines | Discovered new exit (range 5) 498 | -10/Mines | Entered Exiles 523 | -10/Exiles | Discovered new exit (range 15) 541 | -10/Exiles | Met 8R-AWN 579 | -10/Exiles | Met EX-HEX 661 | -10/Exiles | Met EX-DEC 742 | -10/Exiles | Met EX-BIN 869 | -10/Exiles | Discovered new exit (range 11) 1079 | -10/Exiles | Aligned with FarCom system 1080 | -10/Exiles | Given EX-Vault access code 1251 | -10/Exiles | Visited The Gauntlet 1481 | -10/Exiles | Entered Mines 1492 | -9/Mines | Discovered new exit (range 8) 1503 | -9/Mines | Met a Derelict bent on vengeance 1520 | -9/Mines | Entered Materials 1520 | -8/Materials | Accompanied by 2 allies 1520 | -8/Materials | Evolved 4 slots: Power x1, Propulsion x2, Utility x1 1525 | -8/Materials | Led the pair of lost Derelicts to an unsafe place 1821 | -8/Materials | Build established: Scavenger-Mutant 1875 | -8/Materials | Core integrity fell below 50% 1886 | -8/Materials | Core integrity fell below 20% 1954 | -8/Materials | Destroyed by G-47 Trooper with Particle Gun Last Messages --------------- 01919_ Overheating: Broken Aluminum Leg damaged (-15). 01919_ Broken Aluminum Leg destroyed. 01920_ Ion Engine destroyed. 01922_ Y-45 Defender reactivates. 01922_ K-01 Serf collects debris. 01923_ Penetrated by Slug. 01923_ U-05 Engineer lays Concrete. 01924_ Power failure, Ion Engine shutdown. 01924_ R-06 Scavenger collects Sml. Matter Pod. 01925_ Overheating: Lightning Gun damaged (-2). 01926_ K-01 Serf collects debris. 01927_ U-05 Engineer lays Concrete. 01928_ R-06 Scavenger collects Lgt. Ion Engine. 01929_ U-05 Engineer builds a Door. 01931_ K-01 Serf collects debris. 01938_ Dropped Lightning Gun. 01942_ Dropped Lrg. Storage Unit. 01948_ W-25 Informer sends out distress signal. 01948_ Hrd. Heavy Armor Plating destroyed. 01950_ Aluminum Leg destroyed. Map ----- +----------------------------------------------------+ | ?????????????????????????????????????????????????? | | ?????????????????????????????????????????????????? | | ?????????????????????????????????????????????????? | | ?????????????????????????????????????????????????? | | ?????????????????????????????????????????????????? | | ?????????????????????????????????????????????????? | | ?????????????????????????????????????????????????? | | ??????????????????o??????????????????????????????? | | ??????????????????h??????????????????????????????? | | ?????????????????????????????????????????????????? | | ?????????????????????????????????????????????????? | | ?????????????????????????????????????????????????? | | ?????????????????????????????????????????????????? | | ?????????????????????????????????????????????????? | | ?????????????????????????????????????????????????? | | ?????????????????????????????????????????????????? | | ??????????????????????????????????????????######## | | ?????????????????????###########??????????# | | ?????????????????????# #??????????? | | ?????????????????????# #????####### | | ?????????????????????# """ """ #???# #? | | ?????????????????????# """ """ #???# [#? | | ?????????????????????# """ """ #???# """ #?? | | ?????????????????????# #???# """ #?? | | ?????????????????????# ! #???? """ #??? ? | | ?????????????????????# [@ #?????? #??? ? | | ???????????????# #######g#############+######+## | | ???????????????# gh = | | ???????????????+ Y % | | ???????????????# Y g " | | ???????????????# ##### ########w################ | | ???????????????#???????# ???????# ?????????????? | | ???????????????????????#w???????# ???????????? | | ????????????????????????????????# ? ??????????? | | ????????????????????????????????# ?? !! ????????? | | ????????????????????????????????# ?? !! ???????? | | ????????????????????????????????#????######??????# | | ?????????????????????????????????????????????????# | | ??????????????????????????????????????????# ###### | | ??????????????????????????????????????????# | | ??????????????????????????????????????""" / | | ??????????????????????????????????????""" # | | ??????????????????????????????????????????# #### | | ??????????????????????????????????????????# ???? | | ??????????????????????????????????????????# ????? | | ??????????????????????????????????????????# ?????? | | ?????????????????????????????????????????? ??????? | | ????????????????????????????????????????? ???????? | | ???????????????????????????????????????? ????????? | | ???????????????????????????????????????##????????? | +----------------------------------------------------+ Best States ------------- Heat Dissipation 39 Energy Generation 15 Energy Capacity 400 Matter Stores 300 Matter Capacity 300 Sight Range 16 Terrain Scan Density 10 Armor Coverage 600 Evasion (%) 40 Item Schematics ----------------- None Robot Schematics ------------------ None Fabricated ------------ Nothing Alien Tech Used ----------------- None Achievements -------------- Librarian Challenges ------------ None Game ------ Seed CoilZioniteAutogun Manual? 0 Play Time 00:33:38 Cumulative 6.6 hours Start 2020.09.24 @ 14:19:54 End 2020.09.24 @ 15:07:39 Sessions 1 Manual Loads 0 Difficulty Rogue Special Mode None Game No. 28 Rogue 28 Adventurer 0 Explorer 0 Win Type - Total 0 Types 0/0/0/0/0/0/0/0/0 Lore% 7 Gallery% 13 Achievement% 10 Wizard Run 0 Options --------- ASCII 1 Keyboard 0 Movement Mouse Keybinds 0 Fullscreen 1 Font 18/X11 Map View 76x50 Tactical HUD 1 Map Filters NONE Filters NONE Steam 1 RUN: 618c1e83-1aec-4703-a961-763c6ddf3d5b